{"text_format":"1","workbook":"xlsx","n_sheets":8,"sheets":["Sheet1","Panduan BSM","Kementerian","Kriteria A-Strategi","Kriteria B-Ekonomi","Kriteria C-Operasi","Kriteria D-Pengurusan Risiko","Skor"],"not_rendered":{"charts":0,"images":1,"macros":1,"external_links":0,"defined_names":0,"comments":0,"pivot_tables":0},"unopened":[],"bounds":{"document_bytes":16777216,"sheet_cells":100000,"rows_first":2000,"rows_last":500,"rows_between":2000,"halvings":0,"cell_chars":16384,"cell_head_chars":4096},"cells_cut":0,"cells_raw":0,"read":"whole","date_system":"1900"}

{"sheet":"Sheet1","index":0,"n_rows":0,"n_cols":0,"rows_kept":0,"cut":false,"hidden":false,"merged":[]}

{"sheet":"Panduan BSM","index":1,"n_rows":1,"n_cols":1,"rows_kept":1,"cut":false,"hidden":true,"merged":[]}
["\nPENGENALAN DAN OBJEKTIF BUSINESS CASE SCORING MODEL\nBusiness Case Scoring Model (BCSM) merupakan kaedah mengukur tahap kekuatan sesuatu projek daripada aspek strategi, arkitektur, keupayaan sumber dan faedah bagi perkhidmatan agensi. Objektif BCSM ini adalah membantu dalam mengukur tahap kekuatan  Business Case  bagi memantapkan penilaian projek ICT Sektor Awam  di peringkat penilaian Jawatankuasa Pemandu ICT (JPICT) dan Jawatankuasa Teknikal ICT Sektor Awam (JTISA).\n\nPANDUAN PENGGUNAAN BCSM\nBCSM ini mengandungi 27 soalan yang dibahagikan kepada empat (4) kriteria dan enam (6) sub-kriteria seperti berikut:\nKriteria A: Strategi\n                      Sub-kriteria A1: Penjajaran Dengan Matlamat Agensi (1 soalan)\n                      Sub-kriteria A2: Enterprise Architecture (12 soalan)\nKriteria B: Ekonomi\n                      Sub-kriteria B1: Jumlah Kos Pemilikan (6 soalan)\n                      Sub-kriteria B2: Faedah (2 soalan)\nKriteria C: Operasi\n                      Sub-kriteria C1: Kemampanan Operasi (4 soalan)\nKriteria D: Pengurusan Risiko\n                      Sub-kriteria D1: Risiko (2 soalan)\nArahan:\n1. Pemilik Projek WAJIB mengisi Nama Projek, Agensi dan Kementerian di ruangan yang disediakan.\n2. Pemilik Projek WAJIB menjawab SEMUA soalan dengan mengisi ruangan SKOR DIPEROLEHI mengikut skema markah yang telah disediakan.\n3. Sekiranya jawapan adalah TB (Tidak  Berkaitan), Pemilik Projek perlu mengisi perkataan \"TB\" di ruangan SKOR DIPEROLEHI  tersebut.\n4. Sekiranya bukti disertakan, sila nyatakan lampiran yang perlu dirujuk di ruangan CATATAN.\n5. Jumlah Skor dan Tahap Kekuatan Business Case bagi projek yang dimohon boleh dirujuk di Bahagian Skor.\n\nPERHATIAN:\nSila Klik                                                                                                                                             untuk membolehkan fungsi macrodilaksanakan. "]

{"sheet":"Kementerian","index":2,"n_rows":26,"n_cols":1,"rows_kept":26,"cut":false,"hidden":true,"merged":[]}
[]
["Jabatan Perdana Menteri"]
["Kementerian Air, Tanah dan Sumber Asli"]
["Kementerian Belia dan Sukan"]
["Kementerian Dalam Negeri"]
["Kementerian Hal Ehwal Ekonomi"]
["Kementerian Industri Utama"]
["Kementerian Kerja Raya"]
["Kementerian Kesihatan"]
["Kementerian Kewangan"]
["Kementerian Komunikasi dan Multimedia"]
["Kementerian Luar Negeri"]
["Kementerian Pelancongan, Seni dan Budaya"]
["Kementerian Pembangunan Luar Bandar"]
["Kementerian Pembangunan Usahawan"]
["Kementerian Pembangunan Wanita, Keluarga dan Masyarakat"]
["Kementerian Pendidikan"]
["Kementerian Pengangkutan"]
["Kementerian Perdagangan Antarabangsa dan Industri"]
["Kementerian Perdagangan Dalam Negeri dan Hal Ehwal Pengguna"]
["Kementerian Pertahanan"]
["Kementerian Pertanian dan Industri Asas Tani"]
["Kementerian Perumahan dan Kerajaan Tempatan"]
["Kementerian Sumber Manusia"]
["Kementerian Tenaga, Teknologi, Sains, Perubahan Iklim dan Alam Sekitar"]
["Kementerian Wilayah"]

{"sheet":"Kriteria A-Strategi","index":3,"n_rows":24,"n_cols":17,"rows_kept":24,"cut":false,"hidden":true,"merged":[[8,16,9,16],[8,1,9,1],[8,2,9,2],[8,3,9,3],[8,4,9,4],[8,5,8,10],[8,11,9,11],[8,12,9,12],[8,13,9,13],[8,14,9,14],[8,15,9,15],[11,1,22,1],[11,2,22,2],[11,3,13,3],[14,3,16,3],[17,3,20,3],[21,3,22,3]]}
[null,null,"Projek:","jhghf"]
[null,null,"Nama Agensi:","hhjh"]
[null,null,"Nama Kementerian:","text"]
[]
[]
[null,null,"PERINCIAN KOMPONEN DAN KRITERIA BUSINESS CASE SCORING MODEL PENILAIAN PROJEK ICT SEKTOR AWAM"]
[]
[null,"Kriteria :  A. Strategi"]
[null,"BIL.","Sub Kriteria","ITEM","SOALAN","SKEMA MARKAH",null,null,null,null,null,"SKOR DIPEROLEHI\n(DIISI OLEH AGENSI)","SKOR PENUH\n(AGENSI)","SKOR DIPEROLEHI\n(DIISI OLEH MAMPU)","SKOR PENUH\n(MAMPU)","CATATAN","PENERANGAN"]
[null,null,null,null,null,5,4,3,2,1,"TB (Tidak Berkaitan)"]
[null,"(i)","A.1 Penjajaran dengan matlamat Kementerian/ Agensi\n\nBagaimana strategi pelaburan projek sejajar dengan matlamat jangka panjang strategi bisnes dan IT agensi?\n\n\n","A.1.1 Pelan Strategik Bisnes/ (BSP)/ ISP Kementerian/ Agensi/ Sektor Awam terkini\n\n","A.1.1.1 Adakah sejajar dengan Misi Nasional,BSP,ISP kementerian/Agensi atau ISP Sektor Awam.","Sejajar dengan Misi Nasional,BSP,ISP kementerian/Agensi atau ISP Sektor Awam dengan keterangan dan bukti sokongan",null,"Sejajar dengan Misi Nasional,BSP,ISP kementerian/Agensi atau ISP Sektor Awam dengan bukti tanpa keterangan atau sebaliknya.",null,"Sedang disemak semula* / dibangunkan",null,null,5,null,5,null,"Rujukan:  \n● Dokumen berkaitan (Misi Nasional seperti NKRA, NKEA, TN50, RMK)\n● Akta dsb.\n● Pelan Strategik Bisnes (BSP) Agensi atau BSP Kementerian (sekiranya tiada BSP Agensi), ISP\n● Dokumen lain-lain punca kuasa (Contoh Kelulusan Prinsip Jemaah Menteri, arahan kabinet, minit menteri, MJM)\n\nNota:\n● Bagi Agensi di bawah JPM yang tiada BSP, perlu merujuk kepada Agensi yang mengawal selia (Contohnya: Jabatan Insolvensi Malaysia dan Jabatan Bantuan Guaman merujuk kepada BSP Bahagian Hal Ehwal Undang-Undang (BHEUU))\n●   * Bagi projek yang tidak sejajar dengan BSP/ISP dan semakan BSP/ISP sedang dibuat untuk penjajaran semula dengan BSP/ISP"]
[null,"(ii)","A.2 Enterprise Architecture (EA)\n\nMerangkumi 4 domain arkitektur iaitu Bisnes, Data/Maklumat, Aplikasi dan Teknologi. ","A.2.1 Domain Bisnes. \n\nPenjelasan mengenai rasional/motivation/driver, stakeholder, saluran, perkhidmatan, fungsi bisnes agensi, aplikasi  sedia ada, integrasi dan cadangan yang menyokong fungsi bisnes, entiti luar dan dalam yang berhubungan dengan agensi.\n","A.2.1.1  Apakah isu atau masalah yang ingin diselesaikan melalui projek? \n(Contoh: Teknologi usang, undang-undang, manual kepada computerise, perluasan, penstrukturan organisasi)","Isu dijelaskan dengan fakta-fakta dan disokong dengan KPI",null,"Isu dijelaskan dengan fakta-fakta tetapi tidak disokong dengan KPI",null,"Tiada isu / isu tidak jelas.",null,null,5,null,0,null,"Nota: Contoh fakta dalam bentuk penyataan dan statistik, Contoh bukti dalam bentuk laporan rasmi"]
[null,null,null,null,"A.2.1.2 Berapa peratus fungsi teras Kementerian/Agensi yang disokong oleh projek ini?","x ≥ 90% ","70% < x ≤ 90%"," 50% < x ≤ 70%"," 30% < x ≤ 50%","x < 30%",null,null,5,null,5,null,"Nota:\nx=(bilangan fungsi teras yang disokong/jumlah bilangan fungsi teras Kementerian atau Agensi)*100"]
[null,null,null,null,"A.2.1.3 Siapa pengguna dan pemegang taruh projek?","Agensi luar dan agensi dalam dan rakyat",null,"Agensi luar dan agensi dalam",null,"Agensi dalam sahaja",null,null,5,null,5]
[null,null,null,"A.2.2 Domain Data/ Maklumat.\n\nPenjelasan mengenai aliran data/ maklumat agensi merangkumi input, proses, output, integrasi dan perkongsian maklumat dalaman dan luaran. ","A.2.2.1  Sejauh mana perkongsian data/maklumat digunakan dalam projek? ","Kementerian, Agensi dalam dan *Agensi Luar",null,"Kementerian dan Agensi dalam ",null,"Dalaman sahaja","Projek yang tidak melibatkan data/maklumat",null,5,null,5,null,"Nota:\n* Agensi luar: pengguna data selain daripada Kementerian dan Agensi dalam"]
[null,null,null,null,"A.2.2.2 Jika projek melibatkan integrasi, adakah kaedah integrasi dan agensi yang terlibat telah dinyatakan dengan jelas? ","Kaedah integrasi diterangkan dengan jelas dan agensi (luaran/dalaman) terlibat dikenal pasti.",null,"Hanya kaedah integrasi atau agensi (luaran/dalaman) dikenal pasti.",null,"Tidak dijelaskan.","Projek tidak melibatkan integrasi",null,5,null,5,null,"Nota:\nKaedah Integrasi - contoh menggunakan Web services, dll.\n"]
[null,null,null,null,"A.2.2.3 Adakah terdapat pertindihan data dengan sistem lain dalam agensi?","Tiada pertindihan dan disertai dengan fakta yang jelas.",null,"Terdapat sedikit  pertindihan dan disertai dengan fakta yang jelas.",null,"Ada pertindihan dan disertai dengan fakta yang jelas.","Projek tidak melibatkan data",null,5,null,5]
[null,null,null,"A.2.3 Domain Aplikasi \n\nPenjelasan berhubung semua aplikasi, metodologi pembangunan aplikasi, framework, fungsi aplikasi, proses yang terlibat, input & output, hubungan dengan aplikasi lain, pangkalan data dan teknologi, platform yang digunakan.","A.2.3.1 Sejauh manakah impak aplikasi/ projek?","Impak kepada rakyat (telah melaksanakan citizen enggagement)",null,"Impak kepada Kementerian/agensi sektor awam",null,"Impak kepada Kementerian/agensi dalaman","Projek tidak melibatkan aplikasi",null,5,null,5]
[null,null,null,null,"A.2.3.2 Adakah terdapat pertindihan fungsi utama dengan aplikasi generik, dalaman dan luaran?","Tiada pertindihan dan disertai dengan fakta yang jelas.",null,"Terdapat sedikit  pertindihan dan disertai dengan fakta yang jelas.",null,"Ada pertindihan dan disertai dengan fakta yang jelas.","Projek tidak melibatkan aplikasi",null,5,null,5]
[null,null,null,null,"A.2.3.3 Adakah projek aplikasi dilaksanakan secara silo?","Tidak",null,"Ya, tetapi telah dikonsolidasi/diintegrasi mengikut kesesuaian",null,"Ya","Projek tidak melibatkan aplikasi",null,5,null,5]
[null,null,null,null,"A.2.3.4 Apakah kaedah pembangunan projek?","Pembangunan secara In-House.","Pembangunan secara Co-Source bersama pembekal tempatan.","Pembangunan secara Co-Source bersama pembekal tempatan dan luar negara.","Pembangunan secara Out-Source dengan pembekal tempatan.","Pembangunan secara Out-Source dengan pembekal tempatan dan luar negara.","Kepakaran hanya boleh didapati dari luar negara atau projek yang tidak melibatkan pembangunan sistem/ Projek tidak melibatkan pembangunan sistem.",null,5,null,5]
[null,null,null,"A.2.4: Domain Teknologi\n\nPerincian berhubung  Teknologi dan Infrastruktur bagi sedia ada serta cadangan dan hubungan antaranya.","A.2.4.1 Adakah teknologi dan spesifikasi yang dicadangkan bersesuaian (fit for purpose) dengan keperluan projek? ","Ya",null,null,null,"Tidak",null,null,5,null,5]
[null,null,null,null,"A.2.4.2 Adakah agensi telah mendapat khidmat nasihat daripada pasukan Pusat Data Sektor Awam (PDSA)?\n","Ya. Menggunakan perkhidmatan PDSA atau tidak menggunakan perkhidmatan PDSA atas khidmat nasihat PDSA.",null,null,null,"Tidak","Projek yang tidak perlu khidmat nasihat PDSA",null,5,null,5,null,"Dokumen yang perlu disediakan: \n● Template JTISA - Arkitektur Teknologi (Diagram Infrastruktur sedia ada dan cadangan)\n● minit libat urus dengan PDSA."]
[null,null,null,null,null,null,null,null,null,null,"Jumlah",{"$f":"SUM(L11:L23)","v":0},{"$f":"SUM(M11:M23)","v":65},{"$f":"SUM(N11:N23)","v":0},{"$f":"SUM(O11:O23)","v":60}]

{"sheet":"Kriteria B-Ekonomi","index":4,"n_rows":14,"n_cols":17,"rows_kept":14,"cut":false,"hidden":true,"merged":[[3,14,4,14],[3,15,4,15],[3,16,4,16],[5,1,10,1],[5,2,10,2],[5,3,6,3],[7,3,10,3],[3,1,4,1],[3,2,4,2],[3,3,4,3],[3,4,4,4],[3,5,3,10],[3,11,4,11],[11,1,12,1],[11,2,12,2],[11,3,12,3],[3,12,4,12],[3,13,4,13]]}
[null,null,"PERINCIAN KOMPONEN DAN KRITERIA BUSINESS CASE SCORING MODEL PENILAIAN PROJEK ICT SEKTOR AWAM"]
[]
[null,"Kriteria :  B. Ekonomi"]
[null,"BIL.","Sub Kriteria","ITEM","SOALAN","SKEMA MARKAH",null,null,null,null,null,"SKOR DIPEROLEHI\n(DIISI OLEH AGENSI)","SKOR PENUH\n(AGENSI)","SKOR DIPEROLEHI\n(DIISI OLEH MAMPU)","SKOR PENUH\n(MAMPU)","CATATAN","PENERANGAN"]
[null,null,null,null,null,5,4,3,2,1,"Tidak Berkaitan"]
[null,"(iii)","B.1 Jumlah Kos Pemilikan (TCO)\n\nJumlah Kos Pemilikan (TCO) secukupnya diperolehi. TCO merangkumi Kos dari permulaan hingga  serahan projek,  kos penyelenggaraan, sokongan teknikal dan pengurusan perubahan dan GST.","B.1.1 CAPEX\nKos pembangunan projek.","B.1.1.1 Adakah anggaran kos mandays/manmonths bagi perkhidmatan/pembangunan sistem mematuhi  peraturan kerajaan?\n","Ya",null,null,null,"Tidak",null,null,5,null,5,null,"Rujukan:  \n● SPA Bilangan 3 Tahun 2015 : Garis  Panduan Permohonan Kelulusan Teknikal dan Pemantauan Projek ICT Agensi Sektor Awam.\nKementerian Kewangan\n● 1PP/PK2.1 - Garis panduan perolehan Perolehan ICT Kerajaan\n●1PP/PK3.2 - Manual Perolehan Perkhidmatan Perunding\n\n"]
[null,null,null,null,"B.1.1.2 Adakah kos projek munasabah dengan spesifikasi item yang dimohon berdasarkan historical data dan/atau kajian pasaran dan/atau industry benchmark dan/atau Value Assessment (sekiranya nilai projek  50 juta dan ke atas)? ","Ya",null,null,null,"Tidak",null,null,5,null,5,null,"Rujukan:\n● Dokumen sokongan berkaitan (seperti Laporan VM, Kajian pasaran)"]
[null,null,null,"B.1.2 OPEX\nKos operasi, termasuk kos penyelenggaraan, sokongan teknikal selepas serahan projek.","B.1.2.1 Adakah projek ini menggunakan Commercial off the shelf (COTS) dan berapakah anggaran peratusan customization yang terlibat?.","Ya.\ncustomization <= 20%\n",null,null,null,"     Ya. \ncustomization > 20%","Tidak melibatkan COTS",null,5,null,5]
[null,null,null,null,"B.1.2.2 Berapakah anggaran peratusan kos penyelenggaraan sistem aplikasi setahun setelah tamat tempoh jaminan?"," <15%  dari kos pembangunan sistem",null,"15% < X <30%  dari kos pembangunan sistem",null," >30%  dari kos pembangunan sistem","Projek tidak melibatkan sistem aplikasi",null,5,null,0,null,"Nota: \nTCO = CAPEX + OPEX.\n\n*- Anggaran kos penyelenggaraan < 15% dari CAPEX projek asal adalah berdasarkan historical data kertas JTISA.\n  - 30% bagi sistem aplikasi (berdasarkan maklumbalas dari pembekal)."]
[null,null,null,null,"B.1.2.3 Berapakah anggaran peratusan kos penyelenggaraan perisian setahun setelah tamat tempoh jaminan?"," <22%  dari kos perisian",null,"22% < X <30%  dari kos perisian",null," >30%  dari kos perisian","Projek tidak melibatkan perisian",null,5,null,0,null,"Kos penyelenggaraan perisian oracle 30% setahun.\nPerisian 22%\n(Berdasarkan history)"]
[null,null,null,null,"B.1.2.4 Berapakah anggaran peratusan kos penyelenggaraan perkakasan setahun setelah tamat tempoh jaminan?","PC: <15%  dari kos perkakasan",null,"15% < X <30%  dari kos perkakasan",null," >30%  dari kos perkakasan","Projek tidak melibatkan perkakasan",null,5,null,5,null,"PC : RM100 - RM200/unit setahun; RM264/unit\nNotebook: RM300 - RM600/unit setahun\nPrinter: RM315\nServer: RM1500"]
[null,"(iv)","B.2 Faedah\n\n","B.2.1 Pulangan Nilai / Business Value","B.2.1.1 Apakah faedah yang dijangka diperoleh dari pelaksanaan projek? \n","Melibatkan keselamatan nyawa (Contoh: bencana alam, trafik udara, laut dan kesihatan awam)\n\nMeningkatkan keselamatan negara (Contoh: Imigresen, polis, tentera)\n\nMeningkatkan kesihatan awam.\n\nMeningkatkan pendapatan negara (Contoh: Kastam)\n\n",null,"Meningkatkan sistem penyampaian perkhidmatan awam.\n\nMeningkatkan produktiviti.\n\nMeningkatkan imej perkhidmatan awam.",null,"Faedah yang tidak jelas.",null,null,5,null,5]
[null,null,null,null,"B.2.1.2  Adakah projek ini menyumbang kepada penjimatan sumber (kos/masa/sumber manusia) kepada kerajaan?\n","Ada penjimatan dari tiga (3) sumber",null,"Penjimatan dari dua (2) sumber","Penjimatan dari satu (1) sumber","Penjimatan yang dinyatakan tidak jelas.",null,null,5,null,5]
[null,null,null,null,null,null,null,null,null,null,"Jumlah",{"$f":"SUM(L6:L13)","v":0},{"$f":"SUM(M6:M13)","v":40},{"$f":"SUM(N6:N13)","v":0},{"$f":"SUM(O6:O13)","v":30}]

{"sheet":"Kriteria C-Operasi","index":5,"n_rows":10,"n_cols":17,"rows_kept":10,"cut":false,"hidden":true,"merged":[[3,4,4,4],[3,5,3,10],[3,11,4,11],[5,1,8,1],[5,2,8,2],[3,1,4,1],[3,2,4,2],[3,3,4,3],[3,12,4,12],[3,13,4,13],[3,14,4,14],[3,15,4,15],[3,16,4,16]]}
[null,null,"PERINCIAN KOMPONEN DAN KRITERIA BUSINESS CASE SCORING MODEL PENILAIAN PROJEK ICT SEKTOR AWAM"]
[]
[null,"Kriteria :  C. Operasi"]
[null,"BIL.","Sub Kriteria","ITEM","SOALAN","SKEMA MARKAH",null,null,null,null,null,"SKOR DIPEROLEHI\n(DIISI OLEH AGENSI)","SKOR PENUH","SKOR DIPEROLEHI\n(DIISI OLEH MAMPU)","SKOR PENUH\n(MAMPU)","CATATAN","PENERANGAN"]
[null,null,null,null,null,5,4,3,2,1,"TB (Tidak Berkaitan)"]
[null,"(v)","C.1 Kemampanan Operasi (selepas penyerahan projek)\n\nAdakah agensi mempunyai keupayaan untuk melaksanakan dan mengurus inisiatif ini?.  SLA ditakrifkan dengan pemilikan jelas.","C.1.1 Perjanjian Tahap Perkhidmatan (SLA) / Jaminan Tahap Perkhidmatan (SLG)","C.1.1.1  Adakah cadangan SLA/SLG telah dikenal pasti?","Telah kenal pasti",null,null,null,"Tiada","Projek yang tidak melibatkan SLA/SLG",null,5,null,5,null,"Rujukan: \nService Level Agreement (SLA) / Service Level Guarantee (SLG)"]
[null,null,null,"C.1.2 Keupayaan Teknikal Dalaman","C.1.2.1  Adakah agensi mempunyai bilangan dan kemahiran sumber manusia yang cukup untuk pengoperasian projek?","Projek dilaksanakan dengan menggunakan bilangan dan kemahiran sumber manusia sedia ada",null,"Projek dilaksanakan dengan menggunakan bilangan sumber manusia sedia ada tetapi memerlukan latihan (ToT) dalam tempoh kontrak",null,"Projek bergantung sepenuhnya kepada tenaga kerja luaran",null,null,5,null,5,null,"Rujukan:  \nPengurusan Projek ICT Sektor Awam (PPRISA)\n\n"]
[null,null,null,"C.1.3 Plan Kesinambungan Perkhidmatan (BCP)\n\n\n\n","C.1.3.1 Adakah agensi mempunyai BCP dan telah mengambil kira projek ini?\n\n","BCP telah diwujudkan dan mengambil kira projek","BCP telah diwujudkan tetapi tidak mengambil kira projek","BCP sedang diwujudkan","BCP akan diwujudkan","Tiada","Projek Baharu",null,5,null,5,null,"Rujukan:  BCP Kementerian/Agensi"]
[null,null,null,"C.1.4 Pelan Pemulihan Bencana (DRP)","C.1.4.1 Adakah projek telah  diambilkira dalam perancangan DRP agensi?\n\n","DRP telah diwujudkan dan mengambil kira projek","DRP telah diwujudkan tetapi tidak mengambil kira projek","DRP sedang diwujudkan","DRP akan diwujudkan","Tiada","Projek peluasan",null,5,null,5,null,"Rujukan:  DRP Kementerian/Agensi"]
[null,null,null,null,null,null,null,null,null,null,"Jumlah",{"$f":"SUM(L6:L9)","v":0},{"$f":"SUM(M6:M9)","v":20},{"$f":"SUM(N6:N9)","v":0},{"$f":"SUM(O6:O9)","v":20}]

{"sheet":"Kriteria D-Pengurusan Risiko","index":6,"n_rows":9,"n_cols":17,"rows_kept":9,"cut":false,"hidden":true,"merged":[[3,14,5,14],[3,15,5,15],[3,16,5,16],[4,5,5,5],[4,6,5,6],[4,7,5,7],[4,8,5,8],[4,9,5,9],[3,5,3,10],[3,11,5,11],[4,10,5,10],[6,1,7,1],[6,2,7,2],[6,3,7,3],[3,12,5,12],[3,13,5,13],[3,1,5,1],[3,2,5,2],[3,3,5,3],[3,4,5,4]]}
[null,null,"PERINCIAN KOMPONEN DAN KRITERIA BUSINESS CASE SCORING MODEL PENILAIAN PROJEK ICT SEKTOR AWAM"]
[]
[null,"Kriteria :  D. Pengurusan Risiko"]
[null,"BIL.","Sub Kriteria","ITEM","SOALAN","SKEMA MARKAH",null,null,null,null,null,"SKOR DIPEROLEHI\n(DIISI OLEH AGENSI)","SKOR PENUH","SKOR DIPEROLEHI\n(DIISI OLEH MAMPU)","SKOR PENUH\n(MAMPU)","CATATAN","PENERANGAN"]
[null,null,null,null,null,5,4,3,2,1,"TB (Tidak Berkaitan)"]
[]
[null,"(vi)","D.1 Risiko (Financial, technology, people (skill/turn over))\n\nAware of potential risks so that problems can be avoided or controlled well ahead of time.","D.1.1  Pengurusan Risiko","D.1.1.1  Apakah risiko sekiranya projek tidak dilaksanakan?\n\n\n","Menjejaskan operasi agensi secara keseluruhannya. Operasi secara manual.",null,"Menjejaskan sebahagian operasi agensi dengan menggunakan sistem/inisiatif sedia ada.",null,"Boleh beroperasi dengan menggunakan sistem/inisiatif sedia ada.",null,null,5,null,5]
[null,null,null,null,"D.1.1.2  Adakah ahli pasukan projek mencukupi untuk melaksanakan pembangunan projek mengikut skop yang dicadangkan?\n\n","Ya dengan bukti. ",null,null,null,"Tidak",null,null,5,null,5]
[null,null,null,null,null,null,null,null,null,null,"Jumlah",{"$f":"SUM(L7:L8)","v":0},{"$f":"SUM(M7:M8)","v":10},{"$f":"SUM(N7:N8)","v":0},{"$f":"SUM(O7:O8)","v":10}]

{"sheet":"Skor","index":7,"n_rows":16,"n_cols":9,"rows_kept":16,"cut":false,"hidden":true,"merged":[[7,12,7,13]]}
[]
[null,"KRITERIA"," % PEMBERAT","SKOR DIPEROLEHI\n(PENILAIAN AGENSI)","SKOR PENUH (AGENSI)","SKOR DIPEROLEHI MENGIKUT PEMBERAT\n(AGENSI)","SKOR DIPEROLEHI\n(PENILAIAN MAMPU)","SKOR PENUH (MAMPU)","SKOR DIPEROLEHI MENGIKUT PEMBERAT (MAMPU)"]
[null,"A. Strategi",50,{"$f":"'Kriteria A-Strategi'!L24","v":0},{"$f":"'Kriteria A-Strategi'!M24","v":65},{"$f":"(D3/E3*100)*(C3/100)","v":0},{"$f":"'Kriteria A-Strategi'!N24","v":0},{"$f":"'Kriteria A-Strategi'!O24","v":60},{"$f":"(G3/E3*100)*(C3/100)","v":0}]
[null,"B. Ekonomi",30,{"$f":"'Kriteria B-Ekonomi'!L14","v":0},{"$f":"'Kriteria B-Ekonomi'!M14","v":40},{"$f":"(D4/E4*100)*(C4/100)","v":0},{"$f":"'Kriteria B-Ekonomi'!N14","v":0},{"$f":"'Kriteria B-Ekonomi'!O14","v":30},{"$f":"(G4/E4*100)*(C4/100)","v":0}]
[null,"C. Operasi",10,{"$f":"'Kriteria C-Operasi'!L10","v":0},{"$f":"'Kriteria C-Operasi'!M10","v":20},{"$f":"(D5/E5*100)*(C5/100)","v":0},{"$f":"'Kriteria C-Operasi'!N10","v":0},{"$f":"'Kriteria C-Operasi'!O10","v":20},{"$f":"(G5/E5*100)*(C5/100)","v":0}]
[null,"D. Pengurusan Risiko",10,{"$f":"'Kriteria D-Pengurusan Risiko'!L9","v":0},{"$f":"'Kriteria D-Pengurusan Risiko'!M9","v":10},{"$f":"(D6/E6*100)*(C6/100)","v":0},{"$f":"'Kriteria D-Pengurusan Risiko'!N9","v":0},{"$f":"'Kriteria D-Pengurusan Risiko'!O9","v":10},{"$f":"(G6/E6*100)*(C6/100)","v":0}]
[null,null,null,null,"Jumlah Skor",{"$f":"SUM(F3:F6)","v":0},null,null,{"$f":"SUM(I3:I6)","v":0}]
[]
[null,null,"Tahap Kekuatan Business Case (Penilaian Agensi)",null,null,{"$f":"IF(F7>=70,\"TINGGI\",IF(F7<50,\"RENDAH\",\"SEDERHANA\"))","v":"RENDAH"}]
[null,null,"Tahap Kekuatan Business Case (Penilaian MAMPU)",null,null,{"$f":"IF(I7>=70,\"TINGGI\",IF(I7<50,\"RENDAH\",\"SEDERHANA\"))","v":"RENDAH"}]
[]
[]
[null,"Skala Markah","Tahap Kekuatan"]
[null,70,"Tinggi"]
[null,"50 hingga 69.99","Sederhana"]
[null,"Bawah 50","Rendah"]